fUST/lending_fUST_20250702
["ID","MTS","AMOUNT","RATE_DAILY","PERIOD"]
[368971824,1751417461628,-164.29192,0.00025202,7]
[368971825,1751417461637,-164.29192,0.00025202,7]
[368971826,1751417461647,-270.0,0.00025205,3]
[368971827,1751417461656,-168.0,0.00025207,2]
[368971828,1751417461666,-151.0,0.00025216,15]
[368971829,1751417461675,-209.0,0.0002522,2]
[368971830,1751417461684,-209.0,0.0002522,2]
[368971831,1751417461694,-130.6536245,0.00025224,20]
[368971832,1751417464544,-160.06051857,0.00017012,2]
[368971833,1751417467395,-216.62346755,0.00017011,2]
[368971834,1751417469364,-243.37653245,0.00017011,2]
[368971835,1751417469697,5000.0,0.000168,2]
[368971836,1751417471022,-158.86805727,0.00017011,2]
[368971837,1751417472647,-342.81067904,0.00017011,2]
[368971838,1751417475466,-186.37469606,0.00017011,2]
[368971839,1751417477018,-51.94656763,0.00017011,2]
[368971840,1751417477040,-188.30205291,0.00017012,2]
[368971841,1751417478631,-215.22982832,0.00017012,2]
[368971842,1751417481249,-211.07840343,0.00017012,2]
[368971843,1751417483558,-241.71260197,0.00017012,2]
[368971844,1751417486371,-216.48245685,0.00017012,2]
[368971845,1751417491243,-242.4842994,0.00017012,2]
[368971846,1751417493002,-228.82799252,0.00017012,2]
[368971847,1751417497514,-269.20889081,0.00017012,2]
[368971848,1751417500392,-191.95058838,0.00017012,2]
[368971849,1751417502127,-200.14038151,0.00017012,2]
[368971850,1751417506844,-285.81734131,0.00017012,2]
[368971851,1751417508535,-151.48498827,0.00017012,2]
[368971852,1751417510087,-217.60135878,0.00017012,2]
[368971853,1751417511619,-300.0,0.00017012,2]
[368971854,1751417516542,-189.9104735,0.00017012,2]
[368971855,1751417518870,-225.10085961,0.00017012,2]
[368971856,1751417522599,-256.76557787,0.00017012,2]
[368971857,1751417524993,-217.74620979,0.00017012,2]
[368971858,1751417528955,-194.40421781,0.00017012,2]
[368971859,1751417530448,171.164424,0.00013699,2]
[368971860,1751417531108,5000.0,0.000168,2]
[368971861,1751417532479,-159.69101139,0.00017012,2]
[368971863,1751417535294,-215.7231602,0.00017012,2]
[368971864,1751417539354,-192.36429118,0.00017012,2]
[368971865,1751417541101,-175.29254862,0.00017012,2]
[368971866,1751417546760,-363.98273888,0.00017012,2]
[368971867,1751417550351,-161.64454495,0.00017012,2]
[368971868,1751417550752,200.0,0.00024397,120]
[368971869,1751417551891,-194.53859551,0.00017012,2]
[368971870,1751417556518,-272.97330849,0.00017012,2]
[368971871,1751417559713,-187.02669151,0.00017012,2]
[368971872,1751417563112,-165.03300639,0.00017011,2]
[368971873,1751417565263,-272.69776264,0.00017011,2]
[368971874,1751417570602,-62.26923097,0.00017011,2]
[368971875,1751417570625,-136.18934115,0.00017011,2]
[368971876,1751417572898,3194.25642635,0.00016192,2]
[368971877,1751417572923,15000.0,0.00016192,2]
[368971878,1751417572946,6705.74357365,0.00016192,2]
[368971879,1751417579616,-239.6328834,0.00017011,2]
[368971880,1751417583221,-124.17777545,0.00017011,2]
[368971881,1751417583247,-54.99339976,0.00017011,2]
[368971882,1751417587052,-153.9326581,0.0001701,2]
[368971883,1751417591883,-146.0673419,0.0001701,2]
[368971884,1751417591909,-11.13981454,0.00017011,2]
[368971885,1751417592211,5000.0,0.000168,2]
[368971886,1751417594561,-229.53296265,0.00017011,2]
[368971887,1751417596586,-188.78716171,0.00017011,2]
[368971888,1751417600194,-196.26695015,0.00017011,2]
[368971889,1751417603894,-258.72718635,0.00017011,2]
[368971890,1751417607746,3294.25642635,0.000168,2]
[368971891,1751417607770,1705.74357365,0.000168,2]
[368971892,1751417608004,-197.74972477,0.00017011,2]
[368971893,1751417611895,179.0,0.00016548,3]
[368971894,1751417614156,-190.8558315,0.00017011,2]
[368971895,1751417615898,-208.5911016,0.00017011,2]
[368971896,1751417615925,-10.23302334,0.00017011,2]
[368971897,1751417621236,-200.0,0.00017011,2]
[368971898,1751417623503,5000.0,0.000168,2]
[368971899,1751417629718,-234.7735769,0.00017011,2]
[368971900,1751417629744,-72.80046552,0.00017011,2]
[368971901,1751417631322,-152.42595758,0.00017011,2]
[368971902,1751417637619,-241.03639327,0.00017011,2]
[368971903,1751417639737,5000.0,0.000168,2]
[368971904,1751417641145,-33.73718363,0.00017011,2]
[368971905,1751417641169,-127.94120622,0.00017011,2]
[368971906,1751417643954,-193.56206695,0.0001701,2]
[368971907,1751417646799,-106.43793305,0.0001701,2]
[368971908,1751417646830,-117.97627494,0.00017011,2]
[368971909,1751417649578,-17.27305729,0.00017011,2]
[368971910,1751417649601,-162.67832417,0.00017011,2]
[368971911,1751417652838,-179.14676252,0.00017011,2]
[368971912,1751417655643,3115.25642635,0.000168,2]
[368971913,1751417655667,1884.74357365,0.000168,2]
[368971914,1751417657063,-158.17491331,0.00017011,2]
[368971915,1751417657086,-53.04953211,0.00017011,2]
[368971916,1751417661109,-263.64663,0.00017011,2]
[368971917,1751417663293,-45.50049754,0.00017011,2]
[368971918,1751417663316,-114.7619797,0.00017011,2]
[368971919,1751417669099,-190.47070433,0.00017011,2]
[368971920,1751417671597,-194.76731597,0.00017011,2]
[368971921,1751417671620,-71.86886225,0.00017011,2]
[368971922,1751417671768,5000.0,0.000168,2]
[368971923,1751417673458,-168.15984708,0.00017011,2]
[368971924,1751417677535,-229.59818556,0.00017011,2]
[368971925,1751417679764,-30.37310511,0.00017011,2]
[368971926,1751417679788,-199.39820536,0.00017011,2]
[368971927,1751417682067,-210.79128073,0.00017011,2]
[368971928,1751417684907,-89.81051391,0.00017011,2]
[368971929,1751417684931,-85.42356796,0.00017011,2]
[368971930,1751417686497,-274.03501251,0.00017011,2]
[368971931,1751417688058,-140.54141953,0.00017011,2]
[368971932,1751417688082,-45.42356796,0.00017011,2]
[368971933,1751417694213,-165.6186555,0.00017011,2]
[368971934,1751417698409,-221.63119881,0.00017011,2]
[368971935,1751417700871,-67.32657773,0.00017011,2]
[368971936,1751417700901,-95.75760221,0.00017011,2]
[368971937,1751417702527,-254.0251002,0.00017011,2]
[368971938,1751417704803,-160.59957841,0.0001701,2]
[368971939,1751417710427,-139.40042159,0.0001701,2]
[368971940,1751417710451,-21.51438444,0.0001701,2]
[368971941,1751417718778,-157.48561556,0.0001701,2]
[368971942,1751417718803,-20.45293239,0.0001701,2]
[368971943,1751417720861,153.627,0.00016795,2]
[368971944,1751417721034,-177.54706761,0.0001701,2]
[368971945,1751417721057,-89.50753983,0.0001701,2]
[368971946,1751417723857,-171.93302246,0.0001701,2]
[368971947,1751417723968,5000.0,0.000168,2]
[368971948,1751417727175,-192.60683683,0.0001701,2]
[368971949,1751417768426,2961.62942635,0.00016062,2]
[368971950,1751417768450,15000.0,0.00016062,2]
[368971951,1751417768473,7122.34195515,0.00016062,2]
[368971952,1751417788992,5000.0,0.000168,2]
[368971953,1751417812621,2877.65804485,0.00016061,2]
[368971954,1751417812644,9221.30421735,0.00016061,2]
[368971955,1751417862862,5000.0,0.000168,2]
[368971956,1751417872993,-170.66417123,0.0001701,2]
[368971957,1751417878798,778.69578265,0.000168,2]
[368971958,1751417878825,4221.30421735,0.000168,2]
[368971959,1751417878925,-194.38763022,0.0001701,2]
[368971960,1751417923448,5000.0,0.000168,2]
[368971961,1751417926641,164.0,0.00016575,3]
[368971962,1751417939553,5000.0,0.000168,2]
[368971963,1751417984110,614.69578265,0.000168,2]
[368971964,1751417984133,4385.30421735,0.000168,2]
[368971965,1751417999803,5000.0,0.000168,2]
[368971966,1751418029198,211.1029056,0.00016036,2]
[368971967,1751418054754,-165.30214541,0.00017009,2]
[368971968,1751418056968,-26.57447742,0.00017009,2]
[368971969,1751418056996,-182.22518021,0.0001701,2]
[368971970,1751418058604,5000.0,0.000168,2]
[368971971,1751418073834,403.59287705,0.000168,2]
[368971972,1751418073858,4596.40712295,0.000168,2]
[368971974,1751418119068,5000.0,0.000168,2]
[368971975,1751418136385,1725.58661028,0.000168,2]
[368971976,1751418137532,-157.17563894,0.00016911,2]
[368971977,1751418143226,-141.93275902,0.00016911,2]
[368971978,1751418181098,3678.00626677,0.000168,2]
[368971979,1751418181121,542.16573315,0.000168,2]
[368971980,1751418193662,166.0,0.00016438,2]
[368971981,1751418239325,4514.2413898,0.000168,2]
[368971982,1751418242200,166.0,0.00016603,3]
[368971983,1751418247912,-160.0,0.00017002,3]
[368971984,1751418249302,924.889752,0.00016011,2]
[368971985,1751418305991,1212.0461805,0.00016037,2]
[368971986,1751418314043,4540.0,0.000168,2]
[368971987,1751418352105,-341.08352221,0.00016909,2]
[368971988,1751418352128,-5.24,0.00017002,3]
[368971989,1751418352149,-495.74,0.00017002,3]
[368971990,1751418352171,-300.0,0.00017008,2]
[368971991,1751418352194,-300.0,0.00017008,2]
[368971992,1751418352216,-1200.0,0.00017008,2]
[368971993,1751418352236,-28.45027089,0.00017008,2]
[368971994,1751418355081,-271.54972911,0.00017008,2]
[368971995,1751418355105,-300.0,0.00017008,2]
[368971996,1751418355125,-300.0,0.00017008,2]
[368971997,1751418355147,-118.58260141,0.00017009,2]
[368971998,1751418374403,2934.65694455,0.000168,2]
[368971999,1751418374428,2065.34305545,0.000168,2]
[368972000,1751418434947,5000.0,0.000168,2]
[368972001,1751418444102,-300.0,0.00017008,2]
[368972002,1751418444128,-1200.0,0.00017008,2]
[368972003,1751418444152,-171.64708425,0.00017008,2]
[368972004,1751418444185,-328.35291575,0.00017008,2]
[368972005,1751418444206,-500.0,0.00017008,2]
[368972006,1751418444230,-1127.25364361,0.00017008,2]
[368972007,1751418444251,-295.06029037,0.00017008,2]
[368972008,1751418444272,-475.94099842,0.00017008,2]
[368972009,1751418444294,-1127.25364361,0.00017008,2]
[368972010,1751418444317,-474.67801429,0.00017008,2]
[368972011,1751418444341,-1127.25364361,0.00017008,2]
[368972012,1751418444363,-1127.25364361,0.00017008,2]
[368972013,1751418444383,-500.0,0.00017008,2]
[368972014,1751418444406,-1127.25364361,0.00017008,2]
[368972015,1751418444428,-1127.25364361,0.00017008,2]
[368972016,1751418444450,-1127.25364361,0.00017008,2]
[368972017,1751418444470,-500.0,0.00017008,2]
[368972018,1751418444492,-151.84676416,0.00017008,2]
[368972019,1751418450882,752.65410927,0.000168,2]
[368972020,1751418496162,5000.0,0.000168,2]
[368972021,1751418511144,2818.71195141,0.000168,2]
[368972027,1751418556480,14363.29088387,0.00016011,2]
[368972028,1751418556504,10536.70911613,0.00016011,2]
[368972029,1751418558099,-300.0,0.00017006,2]
[368972030,1751418558123,-500.0,0.00017007,2]
[368972031,1751418558144,-500.0,0.00017007,2]
[368972032,1751418558166,-500.0,0.00017007,2]
[368972033,1751418558187,-500.0,0.00017007,2]
[368972034,1751418558209,-500.0,0.00017007,2]
[368972035,1751418558231,-500.0,0.00017007,2]
[368972036,1751418558252,-437.87328854,0.00017007,2]
[368972037,1751418558273,-528.41125904,0.00017007,2]
[368972038,1751418558295,-384.94950507,0.00017007,2]
[368972039,1751418558316,-1353.78262859,0.00017008,2]
[368972040,1751418558336,-867.32169383,0.0001701,2]
[368972041,1751418558355,-160.0,0.00017011,2]
[368972042,1751418558376,-500.0,0.00017011,2]
[368972043,1751418558397,-500.0,0.00017011,2]
[368972044,1751418558417,-206.54220326,0.00017011,2]
[368972045,1751418558439,-1760.82457156,0.00017011,2]
[368972046,1751418558461,-1760.82457156,0.00017011,2]
[368972047,1751418558483,-1534.91581508,0.00017011,2]
[368972048,1751418558520,155.0,0.00016603,3]
[368972049,1751418559610,5000.0,0.000168,2]
[368972050,1751418560093,-225.90875648,0.00017011,2]
[368972051,1751418560114,-182.27461,0.00017011,2]
[368972052,1751418560138,-1760.82457156,0.00017011,2]
[368972053,1751418560165,-1760.82457156,0.00017011,2]
[368972054,1751418560188,-1760.82457156,0.00017011,2]
[368972055,1751418560210,-1760.82457156,0.00017011,2]
[368972056,1751418560231,-500.0,0.00017011,2]
[368972057,1751418560252,-1760.82457156,0.00017011,2]
[368972058,1751418560276,-500.0,0.00017011,2]
[368972059,1751418560298,-500.0,0.00017011,2]
[368972060,1751418560320,-1760.82457156,0.00017011,2]
[368972061,1751418560343,-1760.82457156,0.00017011,2]
[368972062,1751418560364,-383.1586989,0.00017011,2]
[368972063,1751418560389,-1760.82457156,0.00017011,2]
[368972064,1751418560412,-1760.82457156,0.00017011,2]
[368972065,1751418560434,-1760.82457156,0.00017011,2]
[368972066,1751418560573,-1418.51463344,0.00017011,2]
[368972067,1751418564097,-320.64334763,0.00017011,2]
[368972068,1751418565100,-113.01749928,0.00017011,2]
[368972069,1751418565123,-342.30993812,0.00017011,2]
[368972070,1751418565146,-521.18999136,0.00017011,2]
[368972071,1751418565172,-1239.6345802,0.00017011,2]
[368972072,1751418565193,-1760.82457156,0.00017011,2]
[368972073,1751418565216,-2109.73634237,0.00017011,2]
[368972074,1751418565237,-2109.73634237,0.00017011,2]
[368972075,1751418565258,-2109.73634237,0.00017011,2]
[368972076,1751418565279,-2109.73634237,0.00017011,2]
[368972077,1751418565300,-2109.73634237,0.00017011,2]
[368972078,1751418565321,-2109.73634237,0.00017011,2]
[368972079,1751418565342,-2109.73634237,0.00017011,2]
[368972080,1751418565363,-2109.73634237,0.00017011,2]
[368972081,1751418565384,-2109.73634237,0.00017011,2]
[368972082,1751418565405,-2109.73634237,0.00017011,2]
[368972083,1751418565426,-35791.61563597,0.00017012,2]
[368972084,1751418569095,-216.83042346,0.00017012,2]
[368972085,1751418569118,-10090.27383333,0.00017012,2]
[368972086,1751418575221,1953.71830954,0.000168,2]
[368972087,1751418622158,5000.0,0.000168,2]
[368972088,1751418628849,7354.57257433,0.00016208,2]
[368972089,1751418628872,2645.42742567,0.00016208,2]
[368972109,1751418632419,-300.0,0.00017011,2]
[368972111,1751418632428,-300.0,0.00017011,2]
[368972113,1751418632438,-1200.0,0.00017011,2]
[368972115,1751418632447,-6559.06961894,0.00017012,2]
[368972117,1751418632459,-249.9840544,0.00017012,2]
[368972145,1751418635862,191.329713,0.00013699,2]
[368972163,1751418639944,-153.88327834,0.00017011,2]
[368972164,1751418639953,-159.76369873,0.00017011,2]
[368972165,1751418639963,-169.82347323,0.00017011,2]
[368972166,1751418639972,-415.01937265,0.00017012,2]
[368972167,1751418639984,-8162.99123289,0.00017012,2]
[368972169,1751418639995,-6662.27740003,0.00017012,2]
[368972171,1751418640006,-15078.76627015,0.00017012,2]
[368972173,1751418640016,-382.90170959,0.00017013,2]
[368972175,1751418640025,-151.0,0.00017203,2]
[368972177,1751418640034,-175.97,0.00017203,3]
[368972179,1751418640044,-527.91,0.00017203,3]
[368972180,1751418640053,-425.58,0.00017203,3]
[368972181,1751418640062,-212.79,0.00017203,3]
[368972182,1751418640071,-500.0,0.00017212,2]
[368972183,1751418640080,-477.592227,0.00017212,2]
[368972184,1751418640089,-1337.46760757,0.00017212,2]
[368972185,1751418640098,-1337.46760757,0.00017212,2]
[368972186,1751418640108,-1337.46760757,0.00017212,2]
[368972187,1751418640117,-1337.46760757,0.00017212,2]
[368972188,1751418640130,-1337.46760757,0.00017212,2]
[368972189,1751418640149,-1337.46760757,0.00017212,2]
[368972190,1751418640161,-500.0,0.00017212,2]
[368972192,1751418640170,-1337.46760757,0.00017212,2]
[368972194,1751418640181,-500.0,0.00017212,2]
[368972196,1751418640191,-1337.46760757,0.00017212,2]
[368972198,1751418640200,-168.21108923,0.00017212,2]
[368972200,1751418640210,-1337.46760757,0.00017212,2]
[368972202,1751418640219,-1337.46760757,0.00017212,2]
[368972204,1751418640228,-1337.46760757,0.00017212,2]
[368972206,1751418640238,-1337.46760757,0.00017212,2]
[368972208,1751418640247,-1337.46760757,0.00017212,2]
[368972210,1751418640256,-1337.46760757,0.00017212,2]
[368972212,1751418640266,-1337.46760757,0.00017212,2]
[368972214,1751418640275,-1337.46760757,0.00017212,2]
[368972216,1751418640285,-1337.46760757,0.00017212,2]
[368972218,1751418640294,-1337.46760757,0.00017212,2]
[368972220,1751418640303,-1337.46760757,0.00017212,2]
[368972222,1751418640313,-1337.46760757,0.00017212,2]
[368972224,1751418640323,-500.0,0.00017213,2]
[368972226,1751418640332,-460.0,0.00017213,2]
[368972228,1751418640341,-462.69084439,0.00017213,2]
[368972230,1751418640351,-460.0,0.00017213,2]
[368972232,1751418640360,-460.0,0.00017213,2]
[368972234,1751418640369,-460.0,0.00017213,2]
[368972236,1751418640379,-460.0,0.00017213,2]
[368972238,1751418640389,-460.0,0.00017213,2]
[368972240,1751418640398,-460.0,0.00017213,2]
[368972242,1751418640407,-460.0,0.00017213,2]
[368972244,1751418640416,-460.0,0.00017213,2]
[368972246,1751418640427,-460.0,0.00017213,2]
[368972248,1751418640435,-460.0,0.00017213,2]
[368972250,1751418640445,-460.0,0.00017213,2]
[368972252,1751418640454,-460.0,0.00017213,2]
[368972254,1751418640463,-460.0,0.00017213,2]
[368972256,1751418640473,-205.11910165,0.00017213,2]
[368972258,1751418640482,-460.0,0.00017213,2]
[368972260,1751418640492,-460.0,0.00017213,2]
[368972273,1751418640611,-460.0,0.00017213,2]
[368972275,1751418640621,-460.0,0.00017213,2]
[368972278,1751418640631,-460.0,0.00017213,2]
[368972280,1751418640641,-460.0,0.00017213,2]
[368972282,1751418640651,-460.0,0.00017213,2]
[368972284,1751418640660,-460.0,0.00017213,2]
[368972285,1751418640670,-442.09480305,0.00017213,2]
[368972288,1751418640680,-165.58508725,0.00017213,2]
[368972289,1751418640689,-509.20195955,0.00017213,2]
[368972290,1751418640699,-460.0,0.00017213,2]
[368972292,1751418640709,-460.0,0.00017213,2]
[368972294,1751418640719,-460.0,0.00017213,2]
[368972296,1751418640728,-460.0,0.00017213,2]
[368972298,1751418640737,-460.0,0.00017213,2]
[368972300,1751418640746,-460.0,0.00017213,2]
[368972302,1751418640755,-305.37752194,0.00017213,2]
[368972304,1751418640764,-460.0,0.00017213,2]
[368972306,1751418640773,-460.0,0.00017213,2]
[368972308,1751418640783,-460.0,0.00017213,2]
[368972310,1751418640792,-460.0,0.00017213,2]
[368972312,1751418640801,-460.0,0.00017213,2]
[368972314,1751418640810,-460.0,0.00017213,2]
[368972316,1751418640819,-460.0,0.00017213,2]
[368972318,1751418640829,-460.0,0.00017213,2]
[368972320,1751418640838,-460.0,0.00017213,2]
[368972322,1751418640847,-460.0,0.00017213,2]
[368972324,1751418640856,-194.01649872,0.00017213,2]
[368972326,1751418640865,-460.0,0.00017213,2]
[368972328,1751418640874,-460.0,0.00017213,2]
[368972330,1751418640883,-551.01435286,0.00017213,2]
[368972332,1751418640892,-460.0,0.00017213,2]
[368972334,1751418640901,-460.0,0.00017213,2]
[368972336,1751418640910,-460.0,0.00017213,2]
[368972338,1751418640921,-460.0,0.00017213,2]
[368972340,1751418640931,-500.0,0.00017213,2]
[368972342,1751418640940,-460.0,0.00017213,2]
[368972344,1751418640949,-460.0,0.00017213,2]
[368972346,1751418640958,-460.0,0.00017213,2]
[368972347,1751418640967,-460.0,0.00017213,2]
[368972348,1751418640976,-460.0,0.00017213,2]
[368972349,1751418640985,-460.0,0.00017213,2]
[368972350,1751418640995,-460.0,0.00017213,2]
[368972351,1751418641004,-460.0,0.00017213,2]
[368972352,1751418641014,-197.76011633,0.00017213,2]
[368972353,1751418641023,-460.0,0.00017213,2]
[368972354,1751418641032,-460.0,0.00017213,2]
[368972355,1751418641041,-460.0,0.00017213,2]
[368972356,1751418641050,-460.0,0.00017213,2]
[368972357,1751418641059,-460.0,0.00017213,2]
[368972358,1751418641068,-460.0,0.00017213,2]
[368972359,1751418641077,-460.0,0.00017213,2]
[368972360,1751418641086,-455.08980676,0.00017213,2]
[368972361,1751418641095,-460.83054237,0.00017213,2]
[368972362,1751418641104,-460.0,0.00017213,2]
[368972363,1751418641113,-460.0,0.00017213,2]
[368972364,1751418641122,-517.33786576,0.00017213,2]
[368972365,1751418641134,-460.0,0.00017213,2]
[368972366,1751418641143,-460.0,0.00017213,2]
[368972367,1751418641153,-460.0,0.00017213,2]
[368972368,1751418641162,-460.0,0.00017213,2]
[368972370,1751418641171,-460.0,0.00017213,2]
[368972372,1751418641181,-460.0,0.00017213,2]
[368972374,1751418641190,-460.0,0.00017213,2]
[368972376,1751418641200,-433.3441569,0.00017213,2]
[368972378,1751418641210,-460.0,0.00017213,2]
[368972380,1751418641219,-460.0,0.00017213,2]
[368972382,1751418641229,-460.0,0.00017213,2]
[368972384,1751418641239,-460.0,0.00017213,2]
[368972386,1751418641248,-460.0,0.00017213,2]
[368972388,1751418641257,-460.0,0.00017213,2]
[368972390,1751418641266,-460.0,0.00017213,2]
[368972392,1751418641275,-460.0,0.00017213,2]
[368972394,1751418641285,-460.0,0.00017213,2]
[368972396,1751418641295,-566.4132636,0.00017213,2]
[368972398,1751418641304,-460.0,0.00017213,2]
[368972400,1751418641313,-461.80608913,0.00017213,2]
[368972402,1751418641323,-460.0,0.00017213,2]
[368972404,1751418641333,-460.0,0.00017213,2]
[368972406,1751418641347,-460.0,0.00017213,2]
[368972408,1751418641356,-378.57872942,0.00017213,2]
[368972410,1751418641365,-460.0,0.00017213,2]
[368972412,1751418641375,-460.0,0.00017213,2]
[368972414,1751418641385,-460.0,0.00017213,2]
[368972416,1751418641395,-460.0,0.00017213,2]
[368972418,1751418641404,-460.0,0.00017213,2]
[368972420,1751418641413,-586.51819159,0.00017213,2]
[368972422,1751418641422,-460.0,0.00017213,2]
[368972424,1751418641431,-500.0,0.00017213,2]
[368972426,1751418641440,-460.0,0.00017213,2]
[368972428,1751418641449,-460.0,0.00017213,2]
[368972430,1751418641458,-499.64,0.00017213,2]
[368972432,1751418641468,-460.0,0.00017213,2]
[368972434,1751418641477,-460.0,0.00017213,2]
[368972436,1751418641486,-460.0,0.00017213,2]
[368972438,1751418641495,-460.0,0.00017213,2]
[368972440,1751418641505,-460.0,0.00017213,2]
[368972442,1751418641514,-460.0,0.00017213,2]
[368972444,1751418641524,-460.0,0.00017213,2]
[368972446,1751418641533,-500.0,0.00017213,2]
[368972448,1751418641542,-460.0,0.00017213,2]
[368972450,1751418641552,-460.0,0.00017213,2]
[368972452,1751418641561,-460.0,0.00017213,2]
[368972454,1751418641570,-460.0,0.00017213,2]
[368972456,1751418641579,-460.0,0.00017213,2]
[368972458,1751418641590,-460.0,0.00017213,2]
[368972460,1751418641599,-436.84700513,0.00017213,2]
[368972462,1751418641609,-460.0,0.00017213,2]
[368972464,1751418641618,-460.0,0.00017213,2]
[368972466,1751418641628,-460.0,0.00017213,2]
[368972468,1751418641637,-460.0,0.00017213,2]
[368972470,1751418641646,-460.0,0.00017213,2]
[368972472,1751418641656,-460.0,0.00017213,2]
[368972474,1751418641665,-460.0,0.00017213,2]
[368972476,1751418641675,-460.0,0.00017213,2]
[368972478,1751418641684,-388.61454913,0.00017213,2]
[368972480,1751418641696,-460.0,0.00017213,2]
[368972482,1751418641705,-460.0,0.00017213,2]
[368972484,1751418641714,-460.0,0.00017213,2]
[368972486,1751418641724,-447.8459424,0.00017213,2]
[368972489,1751418641734,-460.0,0.00017213,2]
[368972491,1751418641743,-460.0,0.00017213,2]
[368972493,1751418641752,-460.0,0.00017213,2]
[368972495,1751418641762,-460.0,0.00017213,2]
[368972497,1751418641771,-460.0,0.00017213,2]
[368972499,1751418641780,-460.0,0.00017213,2]
[368972501,1751418641791,-460.0,0.00017213,2]
[368972503,1751418641800,-460.0,0.00017213,2]
[368972505,1751418641809,-460.0,0.00017213,2]
[368972507,1751418641818,-460.0,0.00017213,2]
[368972509,1751418641827,-490.44846432,0.00017213,2]
[368972511,1751418641836,-460.0,0.00017213,2]
[368972513,1751418641846,-460.0,0.00017213,2]
[368972515,1751418641855,-460.0,0.00017213,2]
[368972517,1751418641864,-460.0,0.00017213,2]
[368972519,1751418641874,-460.0,0.00017213,2]
[368972521,1751418641883,-460.0,0.00017213,2]
[368972523,1751418641892,-460.0,0.00017213,2]
[368972525,1751418641901,-460.0,0.00017213,2]
[368972527,1751418641911,-460.0,0.00017213,2]
[368972529,1751418641920,-460.0,0.00017213,2]
[368972531,1751418641929,-460.0,0.00017213,2]
[368972533,1751418641938,-460.0,0.00017213,2]
[368972535,1751418641947,-460.0,0.00017213,2]
[368972537,1751418641957,-460.0,0.00017213,2]
[368972539,1751418641966,-460.0,0.00017213,2]
[368972541,1751418641975,-460.0,0.00017213,2]
[368972543,1751418641984,-460.0,0.00017213,2]
[368972545,1751418641993,-229.3221117,0.00017213,2]
[368972547,1751418642003,-460.0,0.00017213,2]
[368972549,1751418642012,-500.0,0.00017213,2]
[368972551,1751418642022,-460.0,0.00017213,2]
[368972553,1751418642031,-460.0,0.00017213,2]
[368972555,1751418642040,-268.6911972,0.00017213,2]
[368972557,1751418642050,-460.0,0.00017213,2]
[368972559,1751418642059,-460.0,0.00017213,2]
[368972561,1751418642069,-460.0,0.00017213,2]
[368972563,1751418642078,-460.0,0.00017213,2]
[368972565,1751418642088,-460.0,0.00017213,2]
[368972567,1751418642097,-460.0,0.00017213,2]
[368972569,1751418642107,-512.10241533,0.00017213,2]
[368972571,1751418642115,-460.0,0.00017213,2]
[368972573,1751418642125,-460.0,0.00017213,2]
[368972575,1751418642137,-460.0,0.00017213,2]
[368972577,1751418642146,-460.0,0.00017213,2]
[368972579,1751418642157,-460.0,0.00017213,2]
[368972581,1751418642166,-460.0,0.00017213,2]
[368972583,1751418642175,-460.0,0.00017213,2]
[368972585,1751418642184,-463.27245912,0.00017213,2]
[368972587,1751418642194,-460.0,0.00017213,2]
[368972589,1751418642203,-329.88907058,0.00017213,2]
[368972591,1751418642214,-460.0,0.00017213,2]
[368972593,1751418642224,-460.0,0.00017213,2]
[368972595,1751418642233,-460.0,0.00017213,2]
[368972597,1751418642243,-460.0,0.00017213,2]
[368972599,1751418642252,-460.0,0.00017213,2]
[368972601,1751418642261,-460.0,0.00017213,2]
[368972603,1751418642270,-460.0,0.00017213,2]
[368972605,1751418642280,-460.0,0.00017213,2]